bitfinex-derivatives/quotes_BTCF0:USTF0_20210705
["timestamp","ask_amount","ask_price","bid_price","bid_amount"]
[1625503521415,4.88408659,33573.0,33572.0,0.53176025]
[1625503522421,4.82508659,33573.0,33572.0,0.53176025]
[1625503522526,4.82508659,33573.0,33572.0,1.23547035]
[1625503523270,3.44656426,33573.0,33572.0,1.23547035]
[1625503523773,3.44656426,33573.0,33572.0,2.29101792]
[1625503524474,3.44656426,33573.0,33572.0,2.35001792]
[1625503524689,2.24033569,33573.0,33572.0,3.58147665]
[1625503524875,2.24033569,33573.0,33572.0,3.64047665]
[1625503525175,0.51705356,33573.0,33572.0,5.04791569]
[1625503526576,1.20810288,33573.0,33572.0,5.04791569]
[1625503527629,0.51705356,33573.0,33572.0,5.04791569]
[1625503528126,1.2093796,33573.0,33572.0,5.04791569]
[1625503528377,7.96e-05,33573.0,33572.0,5.04791569]
[1625503529228,7.96e-05,33573.0,33572.0,5.05826874]
[1625503529383,0.17331449,33573.0,33572.0,5.05826874]
[1625503529483,0.17331449,33573.0,33572.0,4.99926874]
[1625503529579,0.17331449,33573.0,33572.0,5.05826874]
[1625503529935,1.21216258,33577.0,33572.0,5.05826874]
[1625503530033,1.03973226,33576.0,33573.0,3.9037]
[1625503530135,1.03973226,33576.0,33573.0,4.31839]
[1625503530284,1.03973226,33576.0,33573.0,4.32240337]
[1625503530535,1.04063494,33577.0,33575.0,3.69552207]
[1625503530735,1.04063494,33577.0,33575.0,3.81352207]
[1625503530834,1.04063494,33577.0,33576.0,0.0040134]
[1625503531036,1.04063494,33577.0,33576.0,0.0630134]
[1625503531136,1.04063494,33577.0,33576.0,0.1220134]
[1625503531238,1.2129921,33578.0,33576.0,3.75920471]
[1625503531587,1.2129921,33578.0,33577.0,0.48516424]
[1625503531687,1.2129921,33578.0,33577.0,2.7732615]
[1625503531790,1.2129921,33578.0,33577.0,2.8912615]
[1625503532038,1.2129921,33578.0,33577.0,2.8322615]
[1625503532338,1.04119142,33578.0,33577.0,4.24027715]
[1625503532740,1.04119142,33578.0,33577.0,4.23626379]
[1625503532990,1.04119142,33578.0,33577.0,4.29526379]
[1625503533091,1.04119142,33578.0,33577.0,4.29927695]
[1625503533393,1.04119142,33578.0,33577.0,4.24027695]
[1625503533745,2.25377899,33578.0,33577.0,2.8322613]
[1625503535300,1.04119142,33578.0,33577.0,2.8322613]
[1625503535799,1.04119142,33578.0,33577.0,4.24034511]
[1625503537351,1.04119142,33578.0,33577.0,2.8322613]
[1625503537805,2.25388602,33578.0,33577.0,2.8322613]
[1625503540809,1.04119142,33578.0,33577.0,2.8322613]
[1625503540909,1.04119142,33578.0,33577.0,3.0559513]
[1625503541863,2.25479238,33578.0,33577.0,3.0559513]
[1625503541965,2.25479238,33578.0,33577.0,2.8322613]
[1625503543119,1.04119142,33578.0,33577.0,2.8322613]
[1625503543770,2.25513202,33578.0,33577.0,2.8322613]
[1625503545172,2.25513202,33578.0,33577.0,3.0668213]
[1625503545271,2.25513202,33578.0,33577.0,3.1258213]
[1625503545372,2.25513202,33578.0,33577.0,3.0668213]
[1625503545472,2.25513202,33578.0,33577.0,3.1258213]
[1625503545571,2.25513202,33578.0,33577.0,3.0668213]
[1625503545774,1.04119142,33578.0,33577.0,3.0668213]
[1625503545873,1.04119142,33578.0,33577.0,3.1258213]
[1625503546173,1.21402925,33579.0,33577.0,3.1258213]
[1625503546288,2.925e-05,33579.0,33577.0,3.1258213]
[1625503546474,2.925e-05,33579.0,33578.0,0.00401228]
[1625503546626,2.925e-05,33579.0,33578.0,0.06301228]
[1625503546722,2.925e-05,33579.0,33578.0,0.13235933]
[1625503546822,1.56084521,33584.0,33578.0,0.13235933]
[1625503546923,1.43564521,33584.0,33578.0,0.13235933]
[1625503547327,0.43430142,33580.0,33579.0,0.00401183]
[1625503547425,1.0416638,33583.0,33579.0,0.06301183]
[1625503547527,1.0416638,33583.0,33580.0,0.01034065]
[1625503547625,1.0416638,33583.0,33580.0,0.06934065]
[1625503547727,1.0416638,33583.0,33582.0,0.48115088]
[1625503547826,1.0416638,33583.0,33582.0,0.54015088]
[1625503547927,0.5410638,33583.0,33582.0,0.59915088]
[1625503548027,0.5410638,33583.0,33582.0,0.61350215]
[1625503548229,1.04172741,33588.0,33582.0,1.66853802]
[1625503548330,1.04172741,33588.0,33583.0,0.01033935]
[1625503548430,1.04172741,33588.0,33587.0,4.74912]
[1625503548531,1.04172741,33588.0,33587.0,4.86712]
[1625503548631,0.24057544,33598.0,33587.0,4.87113133]
[1625503549131,0.24057544,33598.0,33588.0,0.00401111]
[1625503549230,0.24057544,33598.0,33588.0,0.06301111]
[1625503549333,0.24057544,33598.0,33588.0,0.12201111]
[1625503549682,0.24057544,33598.0,33591.0,0.48115088]
[1625503549783,0.24057544,33598.0,33591.0,0.59915088]
[1625503549934,0.24057544,33598.0,33591.0,0.60316205]
[1625503550683,0.29757544,33601.0,33591.0,0.60316205]
[1625503550784,0.24057544,33601.0,33591.0,0.60316205]
[1625503551083,0.24057544,33601.0,33592.0,0.00401073]
[1625503551186,0.24057544,33601.0,33592.0,0.06301073]
[1625503551285,0.24057544,33601.0,33592.0,0.12201073]
[1625503551401,0.9382,33602.0,33592.0,0.12201073]
[1625503551496,1.73770056,33606.0,33592.0,0.12201073]
[1625503551587,1.73770056,33606.0,33598.0,4.0499]
[1625503551695,1.73770056,33606.0,33603.0,0.48115088]
[1625503551886,1.73867863,33609.0,33603.0,0.48115088]
[1625503552237,1.73867863,33609.0,33603.0,0.54015088]
[1625503552437,0.29757544,33610.0,33603.0,0.48115088]
[1625503553393,0.29757544,33610.0,33603.0,0.54015088]
[1625503554193,0.29757544,33610.0,33603.0,0.48115088]
[1625503555296,0.29757544,33610.0,33603.0,0.54015088]
[1625503555645,0.29757544,33610.0,33603.0,0.48115088]
[1625503555951,0.29757544,33610.0,33603.0,0.54015088]
[1625503556953,0.24057544,33610.0,33603.0,0.54015088]
[1625503557053,0.29957544,33610.0,33603.0,0.54015088]
[1625503557356,4.5821,33609.0,33603.0,0.48115088]
[1625503557456,4.7001,33609.0,33603.0,0.48115088]
[1625503557562,4.93842,33609.0,33603.0,0.48115088]
[1625503557709,4.93842,33609.0,33608.0,0.24057544]
[1625503559213,6.49661727,33609.0,33608.0,0.24057544]
[1625503560115,6.49661727,33609.0,33608.0,7.544e-05]
[1625503560223,6.49661727,33609.0,33592.0,0.057]
[1625503560340,0.057,33608.0,33585.0,0.057]
[1625503560417,0.057,33608.0,33584.0,1.57294117]
[1625503560515,0.175,33608.0,33584.0,1.57294117]
[1625503560867,1.55587967,33604.0,33579.0,1.60463543]
[1625503560968,0.057,33603.0,33579.0,1.60463543]
[1625503561070,0.116,33603.0,33579.0,1.60463543]
[1625503561168,0.175,33603.0,33579.0,1.60463543]
[1625503561267,0.175,33603.0,33589.0,1.3187]
[1625503561368,1.73137683,33603.0,33589.0,1.3187]
[1625503561817,0.24057544,33599.0,33597.0,0.24057544]
[1625503561918,0.45662544,33599.0,33597.0,0.24057544]
[1625503562019,1.8989411,33599.0,33597.0,0.24057544]
[1625503563885,1.9579411,33599.0,33597.0,0.24057544]
[1625503563972,0.24057544,33598.0,33591.0,0.24057544]
[1625503564073,1.68209454,33598.0,33591.0,0.24057544]
[1625503564573,1.74109454,33598.0,33591.0,0.24057544]
[1625503565174,1.68209454,33598.0,33591.0,0.24057544]
[1625503565273,1.74109454,33598.0,33591.0,0.24057544]
[1625503565523,1.68209454,33598.0,33591.0,0.24057544]
[1625503565974,0.24057544,33592.0,33591.0,0.24057544]
[1625503566074,0.47008544,33592.0,33591.0,0.24057544]
[1625503568429,0.52908544,33592.0,33591.0,0.24057544]
[1625503568732,0.47008544,33592.0,33591.0,0.29957544]
[1625503569731,0.47008544,33592.0,33591.0,4.94357544]
[1625503569832,0.24057544,33592.0,33591.0,4.94357544]
[1625503570682,0.24057544,33592.0,33591.0,5.00257544]
[1625503570783,1.4551836,33598.0,33591.0,5.00257544]
[1625503570882,1.4551836,33598.0,33591.0,5.28672013]
[1625503570982,0.24057544,33598.0,33591.0,5.28672013]
[1625503571133,0.24057544,33598.0,33592.0,0.00401458]
[1625503571236,0.24057544,33598.0,33592.0,0.12201458]
[1625503571434,0.24057544,33598.0,33592.0,0.059]
[1625503571534,0.24057544,33598.0,33592.0,0.118]
[1625503571771,0.24057544,33598.0,33593.0,0.00401454]
[1625503571837,1.21644394,33605.0,33593.0,0.06301454]
[1625503571959,0.05609163,45905.0,33593.0,0.06301454]
[1625503571960,1.38976005,33606.0,33604.0,3.813]
[1625503572056,1.38976005,33606.0,33605.0,0.24057544]
[1625503572539,1.21689397,33606.0,33605.0,0.24057544]
[1625503573085,1.45839956,33607.0,33605.0,0.24057544]
[1625503573587,0.24057544,33607.0,33605.0,0.24057544]
[1625503575891,1.4595852,33610.0,33605.0,0.24057544]
[1625503575990,1.4595852,33610.0,33605.0,0.29957544]
[1625503576090,1.21900976,33610.0,33609.0,0.24057544]
[1625503576191,1.27800976,33610.0,33609.0,0.24057544]
[1625503576545,0.059,33610.0,33609.0,0.24057544]
[1625503577545,1.2195548,33613.0,33609.0,0.24057544]
[1625503577647,1.2195548,33613.0,33609.0,0.35857544]
[1625503577747,5.48e-05,33613.0,33609.0,0.35857544]
[1625503577923,0.17946143,33615.0,33610.0,0.00401296]
[1625503578050,0.15356143,33615.0,33614.0,0.72172632]
[1625503578148,0.15356143,33615.0,33614.0,0.95351632]
[1625503578248,0.15356143,33615.0,33614.0,1.01251632]
[1625503578352,1.56794925,33618.0,33614.0,1.01251632]
[1625503578450,1.56794925,33618.0,33614.0,1.01652854]
[1625503578549,1.57104311,33626.0,33614.0,1.01652854]
[1625503578665,1.57104311,33626.0,33615.0,0.00401198]
[1625503578850,1.54074311,33626.0,33615.0,0.06301198]
[1625503579203,4.2504,33630.0,33617.0,1.0428784]
[1625503579444,4.2504,33630.0,33617.0,1.1018784]
[1625503579503,4.2504,33630.0,33618.0,0.00401167]
[1625503579607,4.2504,33630.0,33618.0,0.06301167]
[1625503580005,4.2504,33630.0,33619.0,0.00401144]
[1625503580110,4.2504,33630.0,33629.0,0.24057544]
[1625503580424,0.24057544,33632.0,33629.0,0.24057544]
[1625503580906,0.24057544,33632.0,33631.0,5.1771]
[1625503581109,1.28512202,33632.0,33631.0,5.1771]
[1625503581208,1.28512202,33632.0,33631.0,5.2361]
[1625503581410,1.28512202,33632.0,33631.0,5.2951]
[1625503581717,0.24057544,33632.0,33631.0,5.2951]
[1625503581814,0.24057544,33632.0,33631.0,5.2361]
[1625503582066,0.24057544,33632.0,33631.0,5.2951]
[1625503582266,0.24057544,33632.0,33631.0,5.2361]
[1625503582915,0.24057544,33632.0,33631.0,5.2951]
[1625503583017,1.04471237,33636.0,33631.0,5.2951]
[1625503583221,1.04490138,33637.0,33631.0,5.2951]
[1625503583337,0.24057544,33640.0,33631.0,5.2951]
[1625503583438,0.001,33642.0,33631.0,5.2951]
[1625503583559,0.001,33642.0,33632.0,0.5]
[1625503583629,0.001,33642.0,33632.0,0.559]
[1625503583734,0.001,33642.0,33632.0,0.618]
[1625503584026,0.001,33642.0,33632.0,0.118]
[1625503584137,0.24057544,33652.0,33641.0,0.72172632]
[1625503584422,0.24057544,33652.0,33641.0,0.78072632]
[1625503584722,0.29957544,33652.0,33641.0,0.78072632]
[1625503585325,0.29957544,33652.0,33641.0,0.72172632]
[1625503585425,0.35857544,33652.0,33641.0,0.72172632]
[1625503585526,0.60839544,33652.0,33641.0,0.72172632]
[1625503586126,0.24057544,33642.0,33641.0,0.72172632]
[1625503586228,0.48382544,33642.0,33641.0,0.72172632]
[1625503586327,0.54282544,33642.0,33641.0,0.72172632]
[1625503586427,0.48382544,33642.0,33641.0,0.72172632]
[1625503586829,0.54282544,33642.0,33641.0,0.72172632]
[1625503586929,0.48382544,33642.0,33641.0,0.72172632]
[1625503587029,0.54282544,33642.0,33641.0,0.72172632]
[1625503587732,0.54282544,33642.0,33641.0,0.48115088]
[1625503587836,0.54282544,33642.0,33631.0,5.1771]
[1625503587934,0.54282544,33642.0,33631.0,5.2361]
[1625503588137,0.24057544,33640.0,33635.0,0.24057544]
[1625503588332,0.29957544,33640.0,33635.0,0.24057544]
[1625503588735,0.29957544,33640.0,33635.0,0.29957544]
[1625503588837,0.29957544,33640.0,33635.0,0.24057544]
[1625503589386,0.29957544,33640.0,33629.0,0.24057544]
[1625503589487,0.35857544,33640.0,33629.0,0.24057544]
[1625503589689,0.35857544,33640.0,33625.0,0.24057544]
[1625503589791,0.69308949,33636.0,33625.0,0.24057544]
[1625503589889,0.75208949,33636.0,33625.0,0.24057544]
[1625503589991,0.81108949,33636.0,33625.0,0.24057544]
[1625503590190,0.48115088,33626.0,33625.0,0.24057544]
[1625503590289,0.85192088,33626.0,33625.0,0.24057544]
[1625503590589,0.85192088,33626.0,33619.0,0.24057544]
[1625503592139,0.85192088,33626.0,33623.0,0.24057544]
[1625503592441,0.85192088,33626.0,33616.0,0.24057544]
[1625503592539,0.85192088,33626.0,33603.0,0.057]
[1625503592669,1.40892088,33626.0,33595.0,1.55706458]
[1625503592839,1.40892088,33626.0,33603.0,0.9296]
[1625503593143,0.69304848,33623.0,33603.0,0.9296]
[1625503593243,0.80904848,33623.0,33603.0,0.9296]
[1625503593342,3.9499,33604.0,33596.0,0.69319801]
[1625503593442,4.1683,33604.0,33596.0,0.69319801]
[1625503593543,4.2273,33604.0,33596.0,0.69319801]
[1625503593742,4.2273,33604.0,33596.0,0.75219801]
[1625503593842,4.2273,33604.0,33596.0,0.69319801]
[1625503594099,4.2273,33604.0,33590.0,0.69331167]
[1625503594195,4.2273,33604.0,33603.0,0.24057544]
[1625503594295,4.46787544,33604.0,33603.0,0.24057544]
[1625503594945,4.40887544,33604.0,33603.0,0.24057544]
[1625503595498,4.52687544,33604.0,33596.0,0.24057544]
[1625503596304,0.48115088,33597.0,33596.0,0.24057544]
[1625503596405,0.86954088,33597.0,33596.0,0.24057544]
[1625503596552,0.81054088,33597.0,33596.0,0.24057544]
[1625503597006,0.86954088,33597.0,33596.0,0.24057544]
[1625503597103,0.81054088,33597.0,33596.0,0.24057544]
[1625503597456,0.86954088,33597.0,33596.0,0.24057544]
[1625503598208,0.81054088,33597.0,33596.0,0.24057544]
[1625503601363,0.86954088,33597.0,33596.0,0.24057544]
[1625503601461,0.86954088,33597.0,33593.0,0.2929]
[1625503602321,0.24057544,33595.0,33593.0,0.2929]
[1625503602419,0.35857544,33595.0,33593.0,0.2929]
[1625503603620,0.35857544,33595.0,33593.0,0.0001]
[1625503603721,0.35857544,33595.0,33584.0,0.24057544]
[1625503604320,0.48115088,33585.0,33584.0,0.24057544]
[1625503604419,5.21691088,33585.0,33584.0,0.24057544]
[1625503604521,5.27591088,33585.0,33584.0,0.24057544]
[1625503604627,5.27591088,33585.0,33583.0,0.69514482]
[1625503604831,5.33491088,33585.0,33580.0,0.24057544]
[1625503604930,5.33491088,33585.0,33579.0,0.69558147]
[1625503605628,5.33491088,33585.0,33577.0,0.2929]
[1625503606375,0.48115088,33578.0,33577.0,0.2929]
[1625503606476,0.82490088,33578.0,33577.0,0.2929]
[1625503606575,0.88390088,33578.0,33577.0,0.2929]
[1625503608378,1.12447632,33578.0,33577.0,0.2929]
[1625503609029,0.78072632,33578.0,33577.0,0.2929]
[1625503609128,0.72172632,33578.0,33577.0,0.2929]
[1625503610382,0.48115088,33578.0,33577.0,0.2929]
[1625503610483,0.24057544,33585.0,33577.0,0.62334]
[1625503610587,0.24057544,33585.0,33577.0,0.68234]
[1625503611085,0.24057544,33585.0,33581.0,0.69569168]
[1625503611235,0.24057544,33585.0,33581.0,0.81369168]
[1625503611334,0.24057544,33585.0,33584.0,4.915]
[1625503611436,0.24057544,33585.0,33584.0,6.00071315]
[1625503612137,0.24057544,33585.0,33584.0,5.30499]
[1625503612337,0.24057544,33585.0,33584.0,5.54556544]
[1625503616499,0.9944,33599.0,33584.0,5.54556544]
[1625503616598,0.9374,33599.0,33584.0,5.54556544]
[1625503616902,0.057,33602.0,33584.0,5.54556544]
[1625503617000,0.05609163,46345.0,33584.0,5.54556544]
[1625503617001,0.68951676,33610.0,33588.0,0.69528443]
[1625503617100,0.68951676,33610.0,33588.0,0.75428443]
[1625503617201,0.80751676,33610.0,33588.0,0.81328443]
[1625503617501,0.80751676,33610.0,33589.0,0.69523256]
[1625503617603,0.80751676,33610.0,33589.0,0.75423256]
[1625503617701,0.80751676,33610.0,33589.0,0.81323256]
[1625503617801,0.86451676,33610.0,33589.0,0.81323256]
[1625503618303,0.86451676,33610.0,33590.0,0.00419174]
[1625503618403,0.24057544,33599.0,33598.0,0.24057544]
[1625503618502,0.24057544,33599.0,33598.0,0.29957544]
[1625503618602,0.24057544,33599.0,33598.0,0.35857544]
[1625503619855,0.49839544,33599.0,33598.0,0.24057544]
[1625503619963,0.55739544,33599.0,33598.0,0.24057544]
[1625503620055,0.49839544,33599.0,33598.0,0.24057544]
[1625503620258,0.55739544,33599.0,33598.0,0.24057544]
[1625503620719,0.61639544,33599.0,33598.0,0.24057544]
[1625503620805,0.61639544,33599.0,33595.0,0.24057544]
[1625503622467,0.24057544,33596.0,33595.0,0.24057544]
[1625503622558,0.29957544,33596.0,33595.0,0.24057544]
[1625503622660,0.35857544,33596.0,33595.0,0.24057544]
[1625503623566,0.35857544,33596.0,33584.0,5.39615088]
[1625503623660,0.35857544,33596.0,33584.0,5.45515088]
[1625503623775,0.35857544,33596.0,33585.0,0.00418985]
[1625503624263,0.35857544,33596.0,33585.0,0.06318985]
[1625503624462,0.35857544,33596.0,33590.0,0.24057544]
[1625503625720,0.35857544,33596.0,33577.0,0.69542699]
[1625503625817,0.85857544,33596.0,33578.0,0.52157024]
[1625503625928,0.85857544,33596.0,33578.0,1.2170112]
[1625503625994,0.85857544,33596.0,33579.0,0.00419059]
[1625503626069,0.85857544,33596.0,33580.0,0.2929]
[1625503626263,0.85857544,33596.0,33579.0,0.00419059]
[1625503626464,0.85857544,33596.0,33581.0,0.00418652]
[1625503626563,0.618,33596.0,33581.0,0.00418652]
[1625503626764,0.618,33596.0,33579.0,0.00418666]
[1625503626765,1.20378727,33591.0,33579.0,0.00418666]
[1625503626863,1.48108727,33591.0,33579.0,0.00418666]
[1625503626963,4.2826,33580.0,33573.0,0.9791]
[1625503627063,4.61442,33580.0,33571.0,0.2929]
[1625503627216,4.61442,33580.0,33574.0,0.00418665]
[1625503627515,4.61442,33580.0,33572.0,0.00418681]
[1625503628568,0.96230176,33573.0,33571.0,0.2929]
[1625503628708,1.20936176,33573.0,33568.0,0.24057544]
[1625503628844,1.20936176,33573.0,33563.0,0.5217435]
[1625503628845,1.32736176,33573.0,33563.0,0.5217435]
[1625503628898,1.32736176,33573.0,33560.0,1.21740149]
[1625503628899,1.82736176,33573.0,33562.0,0.52177011]
[1625503629073,1.82736176,33573.0,33563.0,0.2929]
[1625503629098,0.059,33571.0,33562.0,0.52177011]
[1625503629470,0.118,33571.0,33562.0,0.52177011]
[1625503629573,0.5,33570.0,33562.0,0.52177011]
[1625503629671,0.559,33570.0,33562.0,0.52177011]
[1625503629772,0.618,33570.0,33562.0,0.52177011]
[1625503629872,0.559,33570.0,33562.0,0.46277011]
[1625503629973,0.559,33570.0,33544.0,1.2793]
[1625503629974,0.559,33570.0,33549.0,0.52147642]
[1625503630272,0.618,33570.0,33549.0,0.52147642]
[1625503630474,0.618,33570.0,33550.0,0.00419022]
[1625503630572,0.96230176,33551.0,33550.0,0.00419022]
[1625503630773,1.31958176,33551.0,33550.0,0.00419022]
[1625503630873,1.37858176,33551.0,33545.0,0.00418999]
[1625503631424,0.53885544,33551.0,33545.0,0.00418999]
[1625503631557,0.29828,33551.0,33545.0,0.12218999]
[1625503631696,0.057,33566.0,33545.0,0.12218999]
[1625503631723,0.057,33566.0,33545.0,0.36116999]
[1625503631724,0.059,33566.0,33545.0,0.36116999]
[1625503631956,0.059,33566.0,33546.0,0.00418975]
[1625503632039,0.118,33566.0,33546.0,0.06318975]
[1625503632123,4.6018,33552.0,33546.0,0.12218975]
[1625503632424,4.6018,33552.0,33547.0,0.00418975]
[1625503632525,4.6018,33552.0,33547.0,0.06318975]
[1625503632626,0.24057544,33551.0,33550.0,0.24057544]
[1625503632725,0.24057544,33551.0,33550.0,0.29957544]
[1625503632825,0.24057544,33551.0,33550.0,0.35857544]
[1625503633027,0.24057544,33554.0,33550.0,0.35857544]
[1625503633222,0.24057544,33554.0,33550.0,0.62237544]
[1625503633334,0.24057544,33554.0,33550.0,0.62656463]
[1625503633524,0.24057544,33554.0,33551.0,0.00418895]
[1625503633633,0.24057544,33558.0,33551.0,0.00418895]
[1625503633728,0.24057544,33558.0,33553.0,5.022]
[1625503633825,0.24057544,33558.0,33553.0,5.081]
[1625503633935,0.24057544,33558.0,33553.0,5.14]
[1625503634025,0.24057544,33558.0,33554.0,0.00418863]
[1625503634125,0.24057544,33558.0,33554.0,0.06318863]
[1625503634225,0.24057544,33558.0,33555.0,0.2929]
[1625503634426,0.24057544,33558.0,33555.0,0.3519]
[1625503634526,0.24057544,33558.0,33555.0,0.2929]
[1625503634625,0.24057544,33558.0,33557.0,0.48115088]
[1625503635026,0.24057544,33558.0,33557.0,0.86080088]
[1625503637734,0.24157544,33558.0,33557.0,0.86080088]
[1625503640390,0.24157544,33558.0,33557.0,0.29957544]
[1625503640797,0.24157544,33558.0,33557.0,0.24057544]
[1625503640894,0.24157544,33558.0,33557.0,0.29957544]
[1625503641293,0.24157544,33558.0,33557.0,0.24057544]
[1625503641396,0.24157544,33558.0,33557.0,0.29957544]
[1625503641494,0.24157544,33558.0,33557.0,0.24057544]
[1625503641594,0.53781544,33558.0,33557.0,0.24057544]
[1625503642946,0.53781544,33558.0,33557.0,0.29957544]
[1625503647255,0.53781544,33558.0,33555.0,0.2929]
[1625503647456,0.59681544,33558.0,33555.0,0.2929]
[1625503648107,0.65581544,33558.0,33555.0,0.2929]
[1625503648210,0.65581544,33558.0,33550.0,0.24057544]
[1625503648955,0.48115088,33551.0,33550.0,0.24057544]
[1625503649055,0.82006088,33551.0,33550.0,0.24057544]
[1625503649666,0.82006088,33551.0,33546.0,0.53347544]
[1625503649758,0.82006088,33551.0,33546.0,0.59247544]
[1625503649860,0.82006088,33551.0,33546.0,0.65147544]
[1625503649958,0.82006088,33551.0,33546.0,0.59247544]
[1625503650059,0.82006088,33551.0,33547.0,0.00419217]
[1625503650459,0.82006088,33551.0,33547.0,0.06319217]
[1625503650558,0.82006088,33551.0,33547.0,0.00419217]
[1625503651010,0.24057544,33548.0,33547.0,0.00419217]
[1625503652066,0.24057544,33548.0,33547.0,0.06319217]
[1625503652467,0.29857544,33558.0,33547.0,0.06319217]
[1625503652571,0.24157544,33558.0,33547.0,0.42918217]
[1625503652831,0.24157544,33558.0,33548.0,0.6954983]
[1625503652937,0.24157544,33558.0,33548.0,0.7586899]
[1625503653019,0.24157544,33558.0,33557.0,0.48115088]
[1625503653120,0.24157544,33558.0,33557.0,0.82302088]
[1625503653318,0.24157544,33558.0,33557.0,0.76402088]
[1625503653428,0.24157544,33558.0,33557.0,0.7682121]
[1625503653618,0.30057544,33558.0,33557.0,0.28706122]
[1625503653819,0.30057544,33558.0,33557.0,0.22806122]
[1625503654319,0.30057544,33558.0,33557.0,0.00419122]
[1625503654719,0.35957544,33558.0,33557.0,0.00419122]
[1625503654820,0.61072544,33558.0,33551.0,0.0041893]
[1625503655023,0.24057544,33552.0,33551.0,0.0041893]
[1625503655422,0.24057544,33552.0,33551.0,0.0631893]
[1625503655524,0.24057544,33552.0,33551.0,0.1221893]
[1625503655623,0.24157544,33558.0,33551.0,0.1221893]
[1625503655722,0.24157544,33558.0,33551.0,0.3978393]
[1625503655822,0.001,33558.0,33551.0,0.3978393]
[1625503655981,0.001,33558.0,33555.0,5.0017]
[1625503656072,0.001,33558.0,33555.0,5.0607]
[1625503656173,0.001,33558.0,33555.0,5.1197]
[1625503656373,0.001,33558.0,33556.0,0.0041882]
[1625503656473,0.001,33558.0,33556.0,0.0631882]
[1625503656573,0.001,33558.0,33556.0,0.1221882]
[1625503656923,0.001,33558.0,33557.0,0.0041882]
[1625503657023,0.001,33558.0,33557.0,0.54433908]
[1625503657126,0.001,33558.0,33557.0,0.60333908]
[1625503658129,0.001,33558.0,33557.0,0.54433908]
[1625503658326,0.001,33558.0,33557.0,0.0631882]
[1625503658826,0.001,33558.0,33557.0,0.1221882]
[1625503659027,0.24157544,33558.0,33557.0,0.60333908]
[1625503659228,0.24157544,33558.0,33557.0,0.54433908]
[1625503660081,0.24157544,33558.0,33557.0,0.60333908]
[1625503660539,0.24157544,33558.0,33557.0,0.54433908]
[1625503661037,0.001,33558.0,33557.0,0.60333908]
[1625503661538,0.001,33558.0,33557.0,1.30032292]
[1625503663896,0.001,33558.0,33557.0,2.34602108]
[1625503665796,0.001,33558.0,33557.0,2.35484727]
[1625503667501,0.001,33558.0,33557.0,4.97035771]
[1625503667798,0.001,33558.0,33557.0,4.98061587]
[1625503668198,0.001,33558.0,33557.0,6.54959773]
[1625503668297,0.19697544,33570.0,33557.0,6.60659773]
[1625503668399,0.19697544,33570.0,33557.0,2.23814713]
[1625503668649,0.19697544,33570.0,33558.0,0.013005]
[1625503668750,0.19697544,33570.0,33558.0,0.131005]
[1625503668870,0.19697544,33570.0,33565.0,0.3486718]
[1625503668950,0.19697544,33570.0,33566.0,0.057]
[1625503669154,0.19697544,33570.0,33569.0,0.24057544]
[1625503669357,0.25597544,33570.0,33566.0,0.24057544]
[1625503669453,0.48843544,33570.0,33569.0,0.00418046]
[1625503669753,0.48843544,33570.0,33567.0,0.00418063]
[1625503670561,0.54743544,33570.0,33567.0,0.00418063]
[1625503671904,0.54743544,33570.0,33561.0,0.0041813]
[1625503672204,0.54743544,33570.0,33559.0,0.34911361]
[1625503672404,0.54743544,33570.0,33560.0,0.00418197]
[1625503672506,0.34338545,33566.0,33560.0,0.00418197]
[1625503672706,0.46138545,33566.0,33560.0,0.00418197]
[1625503673009,0.34331025,33565.0,33555.0,0.00418192]
[1625503673110,0.48115088,33556.0,33555.0,0.00418192]
[1625503673208,0.75768088,33556.0,33555.0,0.059]
[1625503673410,0.75768088,33556.0,33554.0,0.29757544]
[1625503673510,0.75768088,33556.0,33555.0,0.76197125]
[1625503673609,0.75768088,33556.0,33555.0,0.81897125]
[1625503674963,0.75768088,33556.0,33555.0,1.86708933]
[1625503676670,0.75768088,33556.0,33555.0,1.81008933]
[1625503676869,0.75768088,33556.0,33555.0,1.86708933]
[1625503676969,0.75768088,33556.0,33555.0,1.81008933]
[1625503677069,0.75768088,33556.0,33555.0,3.03414124]
[1625503677869,0.75768088,33556.0,33555.0,2.97514124]
[1625503677969,0.75768088,33556.0,33555.0,1.75108933]
[1625503678474,0.75768088,33556.0,33555.0,0.70297125]
[1625503678824,0.75768088,33556.0,33555.0,2.98082129]
[1625503680125,0.75768088,33556.0,33555.0,3.09682129]
[1625503680376,0.75768088,33556.0,33555.0,4.4986672]
[1625503681424,0.48115088,33556.0,33555.0,4.4986672]
[1625503681676,0.48115088,33556.0,33555.0,4.5576672]
[1625503681776,0.48115088,33556.0,33555.0,4.7941672]
[1625503682075,0.48115088,33556.0,33555.0,4.80299424]
[1625503682677,0.48115088,33556.0,33555.0,6.38008567]
[1625503682775,0.48115088,33556.0,33555.0,6.39041547]
[1625503683178,0.24057544,33556.0,33555.0,6.63099091]
[1625503684777,0.24057544,33561.0,33555.0,6.63099091]
[1625503685028,0.24057544,33561.0,33556.0,0.01033074]
[1625503685228,0.24057544,33561.0,33560.0,0.24057544]
[1625503685328,0.24057544,33561.0,33560.0,0.30792391]
[1625503685430,0.51983963,33566.0,33560.0,0.30792391]
[1625503685690,0.51983963,33566.0,33560.0,0.36692391]
[1625503685698,0.27163963,33566.0,33560.0,6.84968371]
[1625503685884,1.0021813,33568.0,33561.0,0.01034577]
[1625503685916,0.30020548,33570.0,33561.0,0.01034577]
[1625503686081,0.96208861,33572.0,33569.0,0.8876]
[1625503686091,0.96208861,33572.0,33570.0,0.557]
[1625503686145,0.93998861,33572.0,33570.0,4.65365]
[1625503686262,0.58905827,33572.0,33570.0,4.59465]
[1625503686366,1.34011131,33575.0,33570.0,5.039461]
[1625503686430,0.77691131,33575.0,33571.0,0.01300008]
[1625503686536,0.72351131,33575.0,33571.0,0.02331304]
[1625503686829,0.66161131,33575.0,33571.0,0.02331304]
[1625503686934,0.902,33591.0,33571.0,0.02331304]
[1625503686935,1.04619326,33581.0,33572.0,0.01031315]
[1625503687030,1.04619326,33581.0,33572.0,0.08031226]
[1625503687228,1.04619326,33581.0,33580.0,0.96230176]
[1625503687329,1.04619326,33581.0,33580.0,1.73801176]
[1625503687435,1.03559326,33581.0,33580.0,1.74832229]
[1625503687527,0.68349326,33581.0,33580.0,1.81149998]
[1625503687628,0.902,33591.0,33580.0,1.81149998]
[1625503687629,0.902,33591.0,33580.0,5.66970961]
[1625503687827,0.902,33591.0,33581.0,0.01031111]
[1625503687929,0.902,33591.0,33581.0,0.06931111]
[1625503688028,0.902,33591.0,33582.0,0.01031122]
[1625503688128,0.902,33591.0,33584.0,1.75378541]
[1625503688228,0.902,33591.0,33585.0,0.057]
[1625503688429,0.7233,33591.0,33585.0,0.116]
[1625503688628,0.7233,33591.0,33586.0,0.00417751]